Workbook

Sheet PERIOOD
B1: MINU TUNNIPLAAN
B2: SÜGISSEMESTER
C3: ALGUSKELLAAEG | D3: AJAVAHEMIK | F3: AASTA
C4: 09:00:00 | D4: 60 | E4: (minutites)
B5: KELLAAEG | C5: ESMASPÄEV | D5: TEISIPÄEV | E5: KOLMAPÄEV | F5: NELJAPÄEV | G5: REEDE | H5: LAUPÄEV | I5: PÜHAPÄEV
B6: =Algusaeg+TIME(0,(ROW(A1)-1)*Ajavahemik,0) -> 09:00:00 | C6: Hommikusöök | D6: Hommikusöök | E6: Hommikusöök | F6: Hommikusöök | G6: Hommikusöök
B7: 10:00:00 | C7: Äri: loeng, hoone B, ruum 256
B8: 11:00:00 | F8: Füüsika: labor, hoone J, ruum 309
B9: 12:00:00
B10: 13:00:00
B11: 14:00:00
B12: 15:00:00
B13: 16:00:00
B14: 17:00:00
B15: 18:00:00
B16: 19:00:00
B17: 20:00:00
B18: 21:00:00
B19: 22:00:00
B20: 23:00:00
B21: 1
B22: 1.041666667
B23: 1.083333333
B24: 1.125
B25: 1.166666667
B26: 1.208333333
B27: 1.25
B28: 1.291666667
B29: 1.333333333

Sheet AINEPUNKTID
B1: ÜLIÕPILASE
B2: AINEPUNKTIDE PLAANUR
B3: Kraad | C3: =Aasta -> AASTA
B4: EDENEMINE | D4: EDENEMINE
B5: =AVERAGE(Kursused[HINNE]) -> 3.5 | C5: =IFERROR(TEXT(AVERAGEIF(Kursused[LÕPETATUD],"Jah",Kursused[HINNE]),"0,00"),"0,00")&" Praegune keskmine hinne" -> 3,50 Praegune keskmine hinne | D5: =COUNTIF(Kursused[LÕPETATUD],"Jah")/COUNTA(Kursused[KURSUSE NIMI]) -> 0.6666666667 | E5: =TEXT(COUNTIF(Kursused[LÕPETATUD],"Jah")/COUNTA(Kursused[KURSUSE NIMI]),"0%")&" lõpule viidud" -> 67% lõpule viidud
B6: Märkus. Järgnev ainepunktide kokkuvõte täidetakse automaatselt allolevas tabelis Õppemoodulid toodud kirjetega
B7: NÕUE | C7: AINEPUNKTE KOKKU | D7: TEENITUD | E7: NÕUTAV
B8: Peaaine | C8: =IF(SUMIF(Kursused[NÕUE],AINEPUNKTID!$B8,Kursused[AINEPUNKTID])=0,"0",SUMIF(Kursused[NÕUE],AINEPUNKTID!$B8,Kursused[AINEPUNKTID])) -> 4 | D8: =SUMIFS(Kursused[AINEPUNKTID],Kursused[NÕUE],AINEPUNKTID!$B8,Kursused[LÕPETATUD],"Jah") -> 4 | E8: =SUMIF(Kursused[NÕUE],AINEPUNKTID!$B8,Kursused[AINEPUNKTID])-SUMIFS(Kursused[AINEPUNKTID],Kursused[NÕUE],AINEPUNKTID!$B8,Kursused[LÕPETATUD],"Jah") -> 0
B9: Kõrvalaine | C9: =IF(SUMIF(Kursused[NÕUE],AINEPUNKTID!$B9,Kursused[AINEPUNKTID])=0,"0",SUMIF(Kursused[NÕUE],AINEPUNKTID!$B9,Kursused[AINEPUNKTID])) -> 3 | D9: =SUMIFS(Kursused[AINEPUNKTID],Kursused[NÕUE],AINEPUNKTID!$B9,Kursused[LÕPETATUD],"Jah") -> 0 | E9: =SUMIF(Kursused[NÕUE],AINEPUNKTID!$B9,Kursused[AINEPUNKTID])-SUMIFS(Kursused[AINEPUNKTID],Kursused[NÕUE],AINEPUNKTID!$B9,Kursused[LÕPETATUD],"Jah") -> 3
B10: Valikaine | C10: =IF(SUMIF(Kursused[NÕUE],AINEPUNKTID!$B10,Kursused[AINEPUNKTID])=0,"0",SUMIF(Kursused[NÕUE],AINEPUNKTID!$B10,Kursused[AINEPUNKTID])) -> 2 | D10: =SUMIFS(Kursused[AINEPUNKTID],Kursused[NÕUE],AINEPUNKTID!$B10,Kursused[LÕPETATUD],"Jah") -> 2 | E10: =SUMIF(Kursused[NÕUE],AINEPUNKTID!$B10,Kursused[AINEPUNKTID])-SUMIFS(Kursused[AINEPUNKTID],Kursused[NÕUE],AINEPUNKTID!$B10,Kursused[LÕPETATUD],"Jah") -> 0
B11: Üldõpe | C11: =IF(SUMIF(Kursused[NÕUE],AINEPUNKTID!$B11,Kursused[AINEPUNKTID])=0,"0",SUMIF(Kursused[NÕUE],AINEPUNKTID!$B11,Kursused[AINEPUNKTID])) -> 0 | D11: =SUMIFS(Kursused[AINEPUNKTID],Kursused[NÕUE],AINEPUNKTID!$B11,Kursused[LÕPETATUD],"Jah") -> 0 | E11: =SUMIF(Kursused[NÕUE],AINEPUNKTID!$B11,Kursused[AINEPUNKTID])-SUMIFS(Kursused[AINEPUNKTID],Kursused[NÕUE],AINEPUNKTID!$B11,Kursused[LÕPETATUD],"Jah") -> 0
B12: Kokku | C12: =SUBTOTAL(109,AINEPUNKTID!$C$8:$C$11) -> 9 | D12: =SUBTOTAL(109,AINEPUNKTID!$D$8:$D$11) -> 6 | E12: =SUBTOTAL(109,AINEPUNKTID!$E$8:$E$11) -> 3
B13: Kursused
B14: KURSUSE NIMI | C14: KURSUSE nr | D14: NÕUE | E14: AINEPUNKTID | F14: LÕPETATUD | G14: HINNE | H14: SEMESTER
B15: Kursus 1 | C15: Number | D15: Peaaine | E15: 4 | F15: Jah | G15: 4.0 | H15: 1. semester
B16: Kursus 2 | C16: Number | D16: Kõrvalaine | E16: 3 | F16: Ei | H16: 1. semester
B17: Kursus 3 | C17: Number | D17: Valikaine | E17: 2 | F17: Jah | G17: 3.0 | H17: 1. semester

Sheet EELARVE
B1: =Kõrgkool -> ÜLIÕPILASE
B2: EELARVE JÄLGIMINE
B3: Minu eelarve | C3: =Aasta -> AASTA
B4: KULUTATUD SISSETULEKU PROTSENT
B5: =KUU_NETOVÄLJAMINEKUD/KUU_NETOSISSETULEKUD -> 1 €
B6: =B5 -> 0.7454545455
B7: KUU NETOSISSETULEK | C7: KUU NETOVÄLJAMINEKUD | D7: SALDO
B8: =C10 -> 2,750 € | C8: ='KUU NETOVÄLJAMINEKUD'!C4+'SEMESTRI VÄLJAMINEKUD'!D4 -> 2,050 € | D8: =KUU_NETOSISSETULEKUD-KUU_NETOVÄLJAMINEKUD -> 700 €
B9: Kuude arv semestris | C9: 4
B10: KUUSISSETULEK | C10: =SUM(Kuusissetulek[SUMMA]) -> 2,750 €
B11: ÜKSUS | C11: SUMMA
B12: Püsisissetulek | C12: 1,500 €
B13: Finantstoetus | C13: 500 €
B14: Laenud | C14: 500 €
B15: Muu sissetulek | C15: 250 €

Sheet KUU NETOVÄLJAMINEKUD
B1: =Kõrgkool -> ÜLIÕPILASE
B2: EELARVE JÄLGIMINE
B3: Kuuväljaminekud | C3: =Aasta -> AASTA
B4: KUUVÄLJAMINEKUD | C4: =SUM(Kuuväljaminekud[SUMMA]) -> 1,675 €
B5: ÜKSUS | C5: SUMMA
B6: Üür | C6: 300 €
B7: Kommunaalid | C7: 50 €
B8: Mobiiltelefon | C8: 75 €
B9: Toit | C9: 250 €
B10: Auto | C10: 50 €
B11: Õppelaenud | C11: 500 €
B12: Krediitkaardid | C12: 275 €
B13: Kindlustus | C13: 125 €
B14: Meelelahutus | C14: 50 €
B15: Muu | C15: 0 €

Sheet SEMESTRI VÄLJAMINEKUD
B1: =Kõrgkool -> ÜLIÕPILASE
B2: EELARVE JÄLGIMINE
B3: Semestri väljaminekud | C3: =Aasta -> AASTA
B4: SEMESTRI VÄLJAMINEKUD (kokku / kuu kohta) | C4: =SUM(SemestriVäljaminekud[SUMMA]) -> 1,500 € | D4: =SUM(SemestriVäljaminekud[KUU KOHTA]) -> 375 €
B5: ÜKSUS | C5: SUMMA | D5: KUU KOHTA
B6: Õppemaks | C6: 750 € | D6: =SemestriVäljaminekud[[#This Row],[SUMMA]]/Semestri_kuude_arv -> 188 €
B7: Laboritasud | C7: 250 € | D7: =SemestriVäljaminekud[[#This Row],[SUMMA]]/Semestri_kuude_arv -> 63 €
B8: Raamatud | C8: 500 € | D8: =SemestriVäljaminekud[[#This Row],[SUMMA]]/Semestri_kuude_arv -> 125 €
B9: Tagatised | C9: 0 € | D9: =SemestriVäljaminekud[[#This Row],[SUMMA]]/Semestri_kuude_arv -> 0 €
B10: Transport | C10: 0 € | D10: =SemestriVäljaminekud[[#This Row],[SUMMA]]/Semestri_kuude_arv -> 0 €
B11: Muud tasud | C11: 0 € | D11: =SemestriVäljaminekud[[#This Row],[SUMMA]]/Semestri_kuude_arv -> 0 €

Sheet RAAMATUD
B1: =Kõrgkool -> ÜLIÕPILASE
B2: RAAMATUTE JÄLGIMINE
B3: Raamatute nimekiri
B4: PEALKIRI | C4: AUTOR | D4: KURSUS | E4: KUST OSTA? | F4: ISBN | G4: MÄRKMED
B5: Raamatu pealkiri | C5: Autor | D5: Kursus | E5: Asukoht | F5: Number
B6: Raamatu pealkiri | C6: Autor | D6: Kursus | E6: Asukoht | F6: Number
B7: Raamatu pealkiri | C7: Autor | D7: Kursus | E7: Asukoht | F7: Number
